Cogmind - Beta 13 @@@ ROGUE MODE // 2024.04.26 @ 03:11:38 Player: Alphabethead Result: Destroyed by Y-45 Defender with Heavy Assault Rifle Performance ------------- Evolutions (1) 500 Regions Visited (3) 600 Robots Destroyed (9) 45 Value Destroyed (223) 223 Prototype IDs (0) 0 Alien Tech Used (0) 0 Bonus (0) 0 TOTAL SCORE: 1368 Bonus ------- None Cogmind --------- Core Integrity 0/400 Matter 300/300 Energy 100/100 System Corruption 0% Temperature Cool (9) Movement Core (100) Ox1 Location -9/Materials Parts ------- > --- POWER (1) -------- (None) > --- PROPULSION (2) --- (None) > --- UTILITY (4) ------ Small Storage Unit > --- WEAPON (2) ------- (None) > --- INVENTORY (8) ---- Signal Interpreter Peak State ------------ > --- POWER ------------ Light Nuclear Core > --- PROPULSION ------- Wheel Wheel > --- UTILITY ---------- Small Storage Unit Seismic Detector > --- WEAPON ----------- Medium Laser Shotgun > --- INVENTORY -------- Ion Engine Wheel Wheel Signal Interpreter Small Laser Mining Laser [Rating: 10] Favorites ----------- Power Ion Engine Engine Ion Engine Power Core Light Nuclear Core Propulsion Wheel Wheel Wheel Utility Small Storage Unit Device Seismic Detector Storage Small Storage Unit Weapon Light Assault Rifle Energy Gun Medium Laser Ballistic Gun Light Assault Rifle Special Weapon Mining Laser Build | -11 -10 -10 -9 ------- Run | Yrd Mat Min Mat Slots Evolved 2 | . . . 2 Power . | . . . . Propulsion . | . . . . Utility 2 | . . . 2 Weapon . | . . . . Parts Attached 15 | 8 . . 7 Power 3 | 1 . . 2 Engine 2 | 1 . . 1 Core 1 | . . . 1 Reactor . | . . . . Propulsion 5 | 3 . . 2 Treads . | . . . . Leg . | . . . . Wheel 5 | 3 . . 2 Hover . | . . . . Flight . | . . . . Utility 2 | 2 . . . Device 1 | 1 . . . Storage 1 | 1 . . . Processor . | . . . . Hackware . | . . . . Protection . | . . . . Artifact . | . . . . Weapon 5 | 2 . . 3 Energy Gun 2 | 1 . . 1 Energy Cannon . | . . . . Ballistic Gun 2 | 1 . . 1 Ballistic Cannon . | . . . . Launcher . | . . . . Special Weapon 1 | . . . 1 Impact Weapon . | . . . . Slashing Weapon . | . . . . Piercing Weapon . | . . . . Special Melee Weapon . | . . . . Unidentified Prototypes . | . . . . Parts Lost 12 | . . . 12 Power 2 | . . . 2 Propulsion 4 | . . . 4 Utility 1 | . . . 1 Weapon 5 | . . . 5 Highest Loss Streak 7 | . . . 7 To Critical Strikes . | . . . . Average Slot Usage (%) 84 | . 100 100 62 Engine 8 | . 14 14 . Core 2 | . . . 7 Wheel 23 | . 28 28 18 Device 11 | . 14 14 9 Storage 12 | . 14 14 11 Energy Gun 11 | . 14 14 7 Ballistic Gun 11 | . 14 14 7 Naked Turns . | . . . . Heaviest Build 14 | 14 14 14 14 Greatest Support 26 | 26 20 20 20 Greatest Overweight (x) 2 | . . . 2 Average Overweight (x) . | . . . . Largest Inventory Capacity 8 | 8 8 8 8 Average Capacity 7 | 7 8 8 8 Most Carried 8 | 4 8 7 7 Average Carried 5 | . 5 7 5 Final Capacity 8 | 8 8 8 8 Final Carried 7 | 4 7 7 1 Class Distribution -------------------- 100% | Mutant Dominant Class ---------------- Mutant | -10/Materials Mutant | -10/Mines Mutant | -9/Materials Resources | -11 -10 -10 -9 ----------- Run | Yrd Mat Min Mat Matter Collected 371 | 289 16 . 66 Remotely . | . . . . Salvage Created 338 | 119 130 . 89 Parts 11 | 5 3 . 3 Haulers Intercepted . | . . . . Recyclers Shooed 1 | . . 1 . Parts Field Recycled . | . . . . Retrieved Matter . | . . . . Parts Self-Destructed . | . . . . Prevented . | . . . . Kills | -11 -10 -10 -9 ------- Run | Yrd Mat Min Mat Combat Hostiles Destroyed 5 | . 3 . 2 Guns 5 | . 3 . 2 Classes Destroyed 4 | 2 1 . 1 Tunneler 3 | 3 . . . Recycler 1 | 1 . . . Grunt 4 | . 3 . 1 Duelist 1 | . . . 1 Best Kill Streak 3 | 3 2 . 2 Combat Bots Only 2 | . 2 . 2 Max Kills in Single Turn 1 | 1 1 . 1 Gunslinging . | . . . . Exploded . | . . . . Melee . | . . . . Uniques/NPCs Destroyed . | . . . . Combat | -11 -10 -10 -9 -------- Run | Yrd Mat Min Mat Hostile Shots Fired 138 | . 17 6 115 Missed 36 | . 2 1 33 Damage Taken 1292 | . 180 64 1048 Core 483 | . 70 . 413 Absorbed by Shields . | . . . . Core Remaining (%) 86 | 100 . 72 . Volleys Fired 41 | 9 16 2 14 Largest 2 | 2 2 2 2 Hottest 100 | 70 70 70 100 Shots Fired 79 | 18 32 4 25 Gun 76 | 18 32 4 22 Cannon . | . . . . Launcher . | . . . . Special 3 | . . . 3 Kinetic 38 | 9 16 2 11 Thermal 41 | 9 16 2 14 Explosive . | . . . . Electromagnetic . | . . . . Robot Hit Streak 7 | 3 7 1 4 Robot Miss Streak 4 | 2 3 1 4 Penetration Max . | . . . . Secondary Targets 1 | . . . 1 Max Gunslinging Chain 1 | . . . 1 Shots Hit Robots 46 | 10 23 2 11 Core Hits 23 | 6 8 2 7 Critical Kills . | . . . . Critical Parts Destroyed . | . . . . Critical Strikes 3 | . 2 . 1 Burn 3 | . 2 . 1 Melee Attacks . | . . . . Impact . | . . . . Slashing . | . . . . Piercing . | . . . . Sneak Attacks . | . . . . Combat Hostiles . | . . . . Follow-up Attacks . | . . . . Damage Inflicted 505 | 115 231 30 129 Guns 490 | 115 231 30 114 Cannons . | . . . . Explosions . | . . . . Melee . | . . . . Ramming 15 | . . . 15 Kinetic 228 | 39 95 17 77 Thermal 262 | 76 136 13 37 Explosive . | . . . . Electromagnetic . | . . . . Impact . | . . . . Slashing . | . . . . Piercing . | . . . . Highest Corruption . | . . . . Average Corruption . | . . . . Corruption Purged . | . . . . Corruption Blocked . | . . . . Overload Shots . | . . . . Overflow Damage . | . . . . Projectiles . | . . . . Explosions . | . . . . Melee . | . . . . Knockbacks . | . . . . Impact . | . . . . Kinetic . | . . . . Secondary . | . . . . Self-Inflicted Damage 7 | . . . 7 Shots . | . . . . Rammed 2 | . . . 2 Targets Rammed 2 | . . . 2 Kicked . | . . . . Crushed . | . . . . Highest Temperature 244 | 50 244 30 141 Average Temperature 63 | 23 86 18 66 Received Heat Transfer 597 | . 105 . 492 Siege Activations . | . . . . Robots Corrupted . | . . . . Combat Hostiles . | . . . . Parts Fried . | . . . . Impact Corruptions . | . . . . Robots Melted . | . . . . Combat Hostiles . | . . . . Parts Melted 1 | . 1 . . Heat Transferred 999 | 222 555 37 185 Parts Sabotaged . | . . . . Parts Stolen . | . . . . Parts Stripped . | . . . . Power Chain Reactions . | . . . . Alert | -11 -10 -10 -9 ------- Run | Yrd Mat Min Mat Peak Influence 138 | 20 138 53 90 Initial 53 | . 13 53 20 Average 57 | 7 80 53 51 Maximum Alert Level . | . . . . Low Security (%) 100 | 100 100 100 100 Level 1 . | . . . . Level 2 . | . . . . Level 3 . | . . . . Level 4 . | . . . . Level 5 . | . . . . High Security . | . . . . Max Security . | . . . . Squads Dispatched 1 | . 1 . . Investigation . | . . . . Extermination . | . . . . Reinforcement 1 | . 1 . . Assault . | . . . . Garrison . | . . . . Intercept . | . . . . Searches Triggered . | . . . . Construction Impeded . | . . . . Haulers Reinforced . | . . . . Active Scanning Responses . | . . . . Cargo Convoy Interrupts . | . . . . Stealth | -11 -10 -10 -9 --------- Run | Yrd Mat Min Mat Distress Signals 5 | . 2 1 2 Communications Jammed . | . . . . Distress Signals . | . . . . Times Spotted 27 | . 6 5 16 Peak Tracking Total 10 | . 2 7 10 Tactical Retreats . | . . . . Traps | -11 -10 -10 -9 ------- Run | Yrd Mat Min Mat Traps Triggered . | . . . . Indirectly . | . . . . Trap Hack Attempts . | . . . . Triggered . | . . . . Disarmed . | . . . . Reprogrammed . | . . . . Reused . | . . . . Traps Extracted . | . . . . Installed . | . . . . Triggered . | . . . . Machines | -11 -10 -10 -9 ---------- Run | Yrd Mat Min Mat Machines Disabled . | . . . . Max in Single Turn . | . . . . Machines Repaired . | . . . . Machines Dismantled . | . . . . Machines Sabotaged . | . . . . Overloaded Fab Kills . | . . . . Hacking | -11 -10 -10 -9 --------- Run | Yrd Mat Min Mat Machines Accessed 4 | . 2 . 2 Terminals 4 | . 2 . 2 Fabricators . | . . . . Repair Stations . | . . . . Recycling Units . | . . . . Scanalyzers . | . . . . Garrison Access . | . . . . Total Hacks 10 | . 6 . 4 Successful 5 | . 4 . 1 Failed 5 | . 2 . 3 Catastrophic . | . . . . Database Lockouts . | . . . . Manual . | . . . . Terminals 10 | . 6 . 4 Fabricators . | . . . . Repair Stations . | . . . . Recycling Units . | . . . . Scanalyzers . | . . . . Garrison Access . | . . . . Terminal Hacks 5 | . 4 . 1 Emergency Access Points 1 | . 1 . . Locate Traps 3 | . 2 . 1 Dispatch Records 1 | . 1 . . Fabricator Hacks . | . . . . Repair Station Hacks . | . . . . Recycling Unit Hacks . | . . . . Scanalyzer . | . . . . Garrison Access Hacks . | . . . . Unauthorized Hacks . | . . . . Terminals . | . . . . Fabricators . | . . . . Repair Stations . | . . . . Recycling Units . | . . . . Scanalyzers . | . . . . Garrison Access . | . . . . Data Cores Recovered . | . . . . Used . | . . . . Hacking Detections 3 | . 1 . 2 Full Trace Events . | . . . . Feedback Events . | . . . . Feedback Blocked . | . . . . Robot Schematics Acquired . | . . . . Robots Built . | . . . . Authchips . | . . . . Time . | . . . . Total Robot Build Rating . | . . . . Part Schematics Acquired . | . . . . Parts Built . | . . . . Authchips . | . . . . Time . | . . . . Total Part Build Rating . | . . . . Parts Repaired . | . . . . Time . | . . . . Parts Recycled . | . . . . Recycled Matter . | . . . . Retrieved Matter . | . . . . Retrieved Components . | . . . . Parts Scanalyzed . | . . . . Part Schematics Acquired . | . . . . Parts Damaged . | . . . . Bothacking | -11 -10 -10 -9 ------------ Run | Yrd Mat Min Mat Used RIF Installer . | . . . . Robots Hacked . | . . . . Non-combat . | . . . . Combat . | . . . . Robot Hacks Applied . | . . . . Relay Couplers Released . | . . . . Fabnet Peak Effective % . | . . . . Robots Rewired . | . . . . Allies Hacked . | . . . . Hacks Repelled . | . . . . Allies | -11 -10 -10 -9 -------- Run | Yrd Mat Min Mat Total Allies . | . . . . Largest Group . | . . . . Highest-Rated Group . | . . . . Highest-Rated Ally . | . . . . Total Orders . | . . . . Ally Attacks . | . . . . Total Damage . | . . . . Kills . | . . . . Allies Corrupted . | . . . . Allies Melted . | . . . . Intel | -11 -10 -10 -9 ------- Run | Yrd Mat Min Mat Robot Analysis Total . | . . . . Derelict Logs Recovered . | . . . . Drone Launches . | . . . . Drone Recoveries . | . . . . Exploration | -11 -10 -10 -9 ------------- Run | Yrd Mat Min Mat Turns Passed 685 | 98 287 50 250 Spaces Moved 551 | 67 275 47 162 Core 29 | 1 . . 28 Treads . | . . . . Legs . | . . . . Wheels 522 | 66 275 47 134 Hover . | . . . . Flight . | . . . . Fastest Speed 50 | 50 80 80 80 Average Speed 82 | 85 80 80 85 Slowest Speed 150 | 90 80 80 150 Overloaded Moves . | . . . . Propulsion Burnouts . | . . . . Robots Hopped . | . . . . Cave-ins Triggered . | . . . . Exploration Rate (%) 23 | 5 61 12 17 Regions Visited 3 Branch Regions 1 Pre-discovered Areas . | . . . . Known Exits Taken . | . . . . Unknown Exits Taken 3 | 1 1 1 . Scrap Searched . | . . . . Spaces Dug 3 | . . . 3 Terrain Destroyed 3 | . . . 3 Melee . | . . . . Projectile 3 | . . . 3 AOE . | . . . . Terrain Rammed . | . . . . Walls Destroyed . | . . . . Machines Disabled . | . . . . Actions | -11 -10 -10 -9 --------- Run | Yrd Mat Min Mat Total 699 | 87 314 55 243 Wait 76 | . 13 7 56 Move 548 | 66 274 46 162 Hop . | . . . . Pick Up 12 | 4 7 . 1 Fast Attach 7 | 7 . . . Attach 6 | . . . 6 Detach . | . . . . Swap 2 | 1 . . 1 Drop 5 | . 4 . 1 Fire 41 | 9 16 2 14 Melee . | . . . . Ram 2 | . . . 2 Kick . | . . . . Crush . | . . . . Escape Stasis . | . . . . Rewire . | . . . . Trap . | . . . . Miscellaneous . | . . . . Route ------- -11/Scrapyard -10/Materials -10/Mines -9/Materials History --------- Turn | Location | Event 20 | -11/Scrapyard | Discovered new exit (range 16) 99 | -11/Scrapyard | Entered Materials 199 | -10/Materials | Discovered new exit (range 14) 317 | -10/Materials | Build established: Mutant 386 | -10/Materials | Entered Mines 387 | -10/Mines | Assembled infested the area 392 | -10/Mines | Assisted by a Guerilla fighting off Assembled 420 | -10/Mines | Discovered new exit (range 11) 436 | -10/Mines | Entered Materials 436 | -9/Materials | Evolved 2 slots: Utility x2 605 | -9/Materials | Core integrity fell below 50% 641 | -9/Materials | Lost 7 parts (1p2n4w) 676 | -9/Materials | Core integrity fell below 20% 686 | -9/Materials | Destroyed by Y-45 Defender with Heavy Assault Rifle Last Messages --------------- 00601_ Sml. Laser destroyed. 00610_ Shotgun destroyed. 00613_ Slammed into W-16 Scout. 00617_ Connecting with Terminal... 00617_ Current location identified: Materials >>Traps(Locate) Found 6 traps in 1 array: 6x Alarm Trap Map updated. 00648_ Seismic Detector destroyed. 00651_ Acquired 25 matter. 00660_ Slammed into G-34 Mercenary. 00660_ Wheel broken. 00660_ Destabilizing: Short circuit. 00668_ G-34 Mercenary destroyed. 00668_ Mining Laser destroyed. 00671_ Ion Engine destroyed. 00673_ Connecting with Terminal... 00677_ Broken Wheel destroyed. 00677_ Wheel destroyed. Map ----- +----------------------------------------------------+ | ??????? ?????????????????????????????????????? | | ??????? ?????????????????????????????????????? | | ???????# #?????????????????????????????????????? | | ???????# #?????????????????????????????????????? | | ???????# #?????????????????????????????????????? | | ######## #?????????????????????????????????????? | | ## #?????????????????????????????????????? | | """ ## #?????????????????????????????????????? | | """ !## #?????????????????????????????????????? | | """ %## #?????????????????????????????????????? | | //% #??????????? ???????????????????????? | | =%## #??????????# ???????????????????????? | | Y" ## #??????????# ???????????????????????? | | "" ## #??????????+ ???????????????????????? | | ## #??????????# ???????????????????????? | | ##/##### #??????????# ???????????????????????? | | #??????????# ???????????????????????? | | #??????????# #??????????????????????? | | #??????????# #??????????????????????? | | +####### ###??????????# #??????????????????????? | | #???# #????????????# +??????????????????????? | | #???# #????????????# #??????????????????????? | | #???# #????????????# #??????????????????????? | | "" #???# #???????????## ##?????????????????????? | | "" #???#%#???????????# #?????????????????????? | | "" #?### ###?????????# @ #?????????????????????? | | ###### #?????????+ Y #?????????????????????? | | #?????????# #?????????????????????? | | T #?????????# k #?????????????????????? | | #?????????## ##?????????????????????? | | ## ### #??????????# #??????????????????????? | | ?# #?### ###??????????# #??????????????????????? | | ?# #???# #????????????# #??????????????????????? | | ##/##### #????????????# #??????????????????????? | | # #????????????# #??????????????????????? | | # #???????????##g ##?????????????????????? | | "" """ # #############gg #?????????????????????? | | "" """ # g #?????????????????????? | | "" """ + !%[ | T #?????????????????????? | | # #?????????????????????? | | ### ########### #?????????????????????? | | ### # #######?????????????????????? | | #########" # #???????????????????????????? | | ????????## # #???????????????????????????? | | ???####### #% #???????????????????????????? | | ! ^^ ^^^^" #???????????????????????????? | | ! / #???????????????????????????? | | ! ### # ! #???????????????????????????? | | #! ???# # #???????????????????????????? | | #### ????#+###########???????????????????????????? | +----------------------------------------------------+ Best States ------------- Heat Dissipation 28 Energy Generation 14 Energy Capacity 250 Matter Stores 300 Matter Capacity 300 Sight Range 16 Terrain Scan Density 10 Evasion (%) 44 Item Schematics ----------------- None Robot Schematics ------------------ None Fabricated ------------ Nothing Alien Tech Used ----------------- None Achievements -------------- None Challenges ------------ None Game ------ Seed MolecularKineticThruster Manual? 0 Play Time 00:12:20 Cumulative 15.6 hours Start 2024.04.26 @ 03:02:15 End 2024.04.26 @ 03:11:38 Sessions 1 Manual Loads 0 Difficulty Rogue Special Mode None Game No. 24 Rogue 24 Adventurer 0 Explorer 0 Win Type - Total 0 Types 0/0/0/0/0/0/0/0/0 Lore% 18 Gallery% 19 Achievement% 18 Wizard Run 0 Options --------- Layout 1 ASCII 0 Keyboard 1 Movement Arrows Keybinds 0 Fullscreen 1 Font 24/Smallcaps Map View 50x35 Zoom Use 0% Tactical HUD 1 Map Filters NONE Filters NONE Steam 1 RUN: 675bab29-5809-4003-8c2a-af2ffd9451e4